Cogmind - Beta 13 @@@ ROGUE MODE // 2024.07.11 @ 15:26:21 Player: Cash Money Result: Destroyed by as-37051 with Assembled Heavy Rifle Performance ------------- Evolutions (0) 0 Regions Visited (2) 400 Robots Destroyed (12) 60 Value Destroyed (250) 250 Prototype IDs (0) 0 Alien Tech Used (0) 0 Bonus (0) 0 TOTAL SCORE: 710 Bonus ------- None Cogmind --------- Core Integrity 0/250 Matter 300/300 Energy 100/100 System Corruption 1% Temperature Cool (0) Movement Core (50) Location -10/Mines Parts ------- > --- POWER (1) -------- (None) > --- PROPULSION (2) --- (None) > --- UTILITY (2) ------ Signal Interpreter Tractor Beam > --- WEAPON (2) ------- Makeshift Spear > --- INVENTORY (5) ---- Light Ion Engine Light Ion Engine Heat Sink Signal Interpreter Signal Interpreter Peak State ------------ > --- POWER ------------ Light Ion Engine > --- PROPULSION ------- Flight Unit Flight Unit > --- UTILITY ---------- Signal Interpreter Tractor Beam > --- WEAPON ----------- Light Assault Rifle Makeshift Spear > --- INVENTORY -------- Light Ion Engine Light Ion Engine Heat Sink Signal Interpreter Signal Interpreter [Rating: 10] Favorites ----------- Power Light Ion Engine Engine Light Ion Engine Propulsion Flight Unit Leg Aluminum Leg Flight Unit Flight Unit Utility Signal Interpreter Device Tractor Beam Storage Medium Storage Unit Processor Signal Interpreter Weapon Light Assault Rifle Ballistic Gun Light Assault Rifle Ballistic Cannon Light Cannon Piercing Weapon Makeshift Spear Build | -11 -10 -10 ------- Run | Yrd Mat Min Slots Evolved . | . . . Power . | . . . Propulsion . | . . . Utility . | . . . Weapon . | . . . Parts Attached 15 | 7 7 1 Power 3 | 2 1 . Engine 3 | 2 1 . Core . | . . . Reactor . | . . . Propulsion 4 | 2 2 . Treads . | . . . Leg 2 | 2 . . Wheel . | . . . Hover . | . . . Flight 2 | . 2 . Utility 4 | 1 3 . Device 1 | . 1 . Storage 2 | 1 1 . Processor 1 | . 1 . Hackware . | . . . Protection . | . . . Artifact . | . . . Weapon 4 | 2 1 1 Energy Gun . | . . . Energy Cannon . | . . . Ballistic Gun 2 | 2 . . Ballistic Cannon 1 | . 1 . Launcher . | . . . Special Weapon . | . . . Impact Weapon . | . . . Slashing Weapon . | . . . Piercing Weapon 1 | . . 1 Special Melee Weapon . | . . . Unidentified Prototypes . | . . . Parts Lost 4 | . . 4 Power 1 | . . 1 Propulsion 2 | . . 2 Utility . | . . . Weapon 1 | . . 1 Highest Loss Streak 4 | . . 4 To Critical Strikes . | . . . Average Slot Usage (%) 87 | . 91 76 Engine 11 | . 14 5 Leg 4 | . 6 . Flight 20 | . 21 17 Device 9 | . 8 14 Storage 2 | . 3 . Processor 10 | . 8 14 Ballistic Gun 17 | . 19 10 Ballistic Cannon 7 | . 8 5 Piercing Weapon 2 | . . 8 Naked Turns . | . . . Heaviest Build 17 | 12 17 8 Greatest Support 20 | 20 20 8 Greatest Overweight (x) 3 | . 3 1 Average Overweight (x) . | . . . Largest Inventory Capacity 10 | 8 10 5 Average Capacity 6 | 6 6 5 Most Carried 5 | 1 5 5 Average Carried 3 | . 3 5 Final Capacity 8 | 8 5 5 Final Carried 5 | 1 5 5 Class Distribution -------------------- 100% | Mutant Dominant Class ---------------- Mutant | -10/Materials Mutant | -10/Mines Resources | -11 -10 -10 ----------- Run | Yrd Mat Min Matter Collected 499 | 251 237 11 Remotely 166 | . 155 11 Salvage Created 309 | . 280 29 Parts 26 | . 26 . Haulers Intercepted . | . . . Recyclers Shooed . | . . . Parts Field Recycled . | . . . Retrieved Matter . | . . . Parts Self-Destructed . | . . . Prevented . | . . . Kills | -11 -10 -10 ------- Run | Yrd Mat Min Combat Hostiles Destroyed 12 | . 10 2 Melee 2 | . . 2 Guns 5 | . 5 . Cannons 5 | . 5 . Classes Destroyed 5 | . 4 1 Worker 1 | . 1 . Watcher 1 | . 1 . Swarmer 5 | . 5 . Grunt 5 | . 5 . Assembled 2 | . . 2 Best Kill Streak 5 | . 5 2 Combat Bots Only 3 | . 3 2 Max Kills in Single Turn 2 | . 2 1 Gunslinging 1 | . 1 . Exploded . | . . . Melee 1 | . . 1 Uniques/NPCs Destroyed . | . . . Combat | -11 -10 -10 -------- Run | Yrd Mat Min Hostile Shots Fired 79 | . 54 25 Missed 21 | . 18 3 Damage Taken 659 | . 342 317 Core 259 | . 121 138 Absorbed by Shields . | . . . Core Remaining (%) 100 | 100 . . Volleys Fired 35 | . 34 1 Largest 2 | . 2 1 Hottest 55 | . 55 20 Shots Fired 69 | . 68 1 Gun 39 | . 38 1 Cannon 30 | . 30 . Launcher . | . . . Special . | . . . Kinetic 69 | . 68 1 Thermal . | . . . Explosive . | . . . Electromagnetic . | . . . Robot Hit Streak 3 | . 3 . Robot Miss Streak 8 | . 8 1 Penetration Max . | . . . Secondary Targets 1 | . 1 . Max Gunslinging Chain 1 | . 1 . Shots Hit Robots 36 | . 32 4 Core Hits 23 | . 21 2 Critical Kills . | . . . Critical Parts Destroyed . | . . . Critical Strikes 1 | . 1 . Blast 1 | . 1 . Melee Attacks 13 | . . 13 Impact . | . . . Slashing . | . . . Piercing 13 | . . 13 Sneak Attacks . | . . . Combat Hostiles . | . . . Follow-up Attacks . | . . . Damage Inflicted 573 | . 433 140 Guns 179 | . 179 . Cannons 254 | . 254 . Explosions . | . . . Melee 140 | . . 140 Ramming . | . . . Kinetic 433 | . 433 . Thermal . | . . . Explosive . | . . . Electromagnetic . | . . . Impact . | . . . Slashing . | . . . Piercing 140 | . . 140 Highest Corruption 1 | . . 1 Average Corruption 1 | . . 1 Corruption Purged . | . . . Corruption Blocked . | . . . Effects 1 | . . 1 Message Errors 1 | . . 1 Overload Shots . | . . . Overflow Damage . | . . . Projectiles . | . . . Explosions . | . . . Melee . | . . . Knockbacks 1 | . 1 . Impact . | . . . Kinetic 1 | . 1 . Secondary . | . . . Self-Inflicted Damage . | . . . Shots . | . . . Rammed . | . . . Targets Rammed . | . . . Kicked . | . . . Crushed . | . . . Highest Temperature 129 | . 129 . Average Temperature 38 | . 38 . Received Heat Transfer 181 | . 81 100 Siege Activations . | . . . Robots Corrupted . | . . . Combat Hostiles . | . . . Parts Fried . | . . . Impact Corruptions . | . . . Robots Melted . | . . . Combat Hostiles . | . . . Parts Melted . | . . . Heat Transferred . | . . . Parts Sabotaged . | . . . Parts Stolen . | . . . Parts Stripped . | . . . Power Chain Reactions . | . . . Alert | -11 -10 -10 ------- Run | Yrd Mat Min Peak Influence 307 | . 307 119 Initial 119 | . . 119 Average 100 | . 126 103 Maximum Alert Level 1 | . 1 . Low Security (%) 83 | 100 72 100 Level 1 16 | . 27 . Level 2 . | . . . Level 3 . | . . . Level 4 . | . . . Level 5 . | . . . High Security . | . . . Max Security . | . . . Squads Dispatched 3 | . 3 . Investigation . | . . . Extermination . | . . . Reinforcement 3 | . 3 . Assault . | . . . Garrison . | . . . Intercept . | . . . Searches Triggered . | . . . Construction Impeded . | . . . Haulers Reinforced . | . . . Active Scanning Responses . | . . . Cargo Convoy Interrupts . | . . . Stealth | -11 -10 -10 --------- Run | Yrd Mat Min Distress Signals 1 | . 1 . Communications Jammed . | . . . Distress Signals . | . . . Times Spotted 22 | . 19 3 Peak Tracking Total 4 | . 4 3 Tactical Retreats 1 | . 1 . Traps | -11 -10 -10 ------- Run | Yrd Mat Min Traps Triggered . | . . . Indirectly . | . . . Trap Hack Attempts . | . . . Triggered . | . . . Disarmed . | . . . Reprogrammed . | . . . Reused . | . . . Traps Extracted . | . . . Installed . | . . . Triggered . | . . . Machines | -11 -10 -10 ---------- Run | Yrd Mat Min Machines Disabled . | . . . Max in Single Turn . | . . . Machines Repaired . | . . . Machines Dismantled . | . . . Machines Sabotaged . | . . . Overloaded Fab Kills . | . . . Hacking | -11 -10 -10 --------- Run | Yrd Mat Min Machines Accessed 1 | . 1 . Terminals 1 | . 1 . Fabricators . | . . . Repair Stations . | . . . Recycling Units . | . . . Scanalyzers . | . . . Garrison Access . | . . . Total Hacks 3 | . 3 . Successful 2 | . 2 . Failed 1 | . 1 . Catastrophic . | . . . Database Lockouts . | . . . Manual . | . . . Terminals 3 | . 3 . Fabricators . | . . . Repair Stations . | . . . Recycling Units . | . . . Scanalyzers . | . . . Garrison Access . | . . . Terminal Hacks 2 | . 2 . Locate Traps 1 | . 1 . Zone Layout 1 | . 1 . Fabricator Hacks . | . . . Repair Station Hacks . | . . . Recycling Unit Hacks . | . . . Scanalyzer . | . . . Garrison Access Hacks . | . . . Unauthorized Hacks . | . . . Terminals . | . . . Fabricators . | . . . Repair Stations . | . . . Recycling Units . | . . . Scanalyzers . | . . . Garrison Access . | . . . Data Cores Recovered . | . . . Used . | . . . Hacking Detections 1 | . 1 . Full Trace Events . | . . . Feedback Events . | . . . Feedback Blocked . | . . . Robot Schematics Acquired . | . . . Robots Built . | . . . Authchips . | . . . Time . | . . . Total Robot Build Rating . | . . . Part Schematics Acquired . | . . . Parts Built . | . . . Authchips . | . . . Time . | . . . Total Part Build Rating . | . . . Parts Repaired . | . . . Time . | . . . Parts Recycled . | . . . Recycled Matter . | . . . Retrieved Matter . | . . . Retrieved Components . | . . . Parts Scanalyzed . | . . . Part Schematics Acquired . | . . . Parts Damaged . | . . . Bothacking | -11 -10 -10 ------------ Run | Yrd Mat Min Used RIF Installer . | . . . Robots Hacked . | . . . Non-combat . | . . . Combat . | . . . Robot Hacks Applied . | . . . Relay Couplers Released . | . . . Fabnet Peak Effective % . | . . . Robots Rewired . | . . . Allies Hacked . | . . . Hacks Repelled . | . . . Allies | -11 -10 -10 -------- Run | Yrd Mat Min Total Allies . | . . . Largest Group . | . . . Highest-Rated Group . | . . . Highest-Rated Ally . | . . . Total Orders . | . . . Ally Attacks . | . . . Total Damage . | . . . Kills . | . . . Allies Corrupted . | . . . Allies Melted . | . . . Intel | -11 -10 -10 ------- Run | Yrd Mat Min Robot Analysis Total . | . . . Derelict Logs Recovered . | . . . Drone Launches . | . . . Drone Recoveries . | . . . Exploration | -11 -10 -10 ------------- Run | Yrd Mat Min Turns Passed 352 | 57 214 81 Spaces Moved 343 | 40 168 135 Core 8 | 3 . 5 Treads . | . . . Legs 65 | 37 28 . Wheels . | . . . Hover . | . . . Flight 270 | . 140 130 Fastest Speed 37 | 50 37 37 Average Speed 55 | 114 55 38 Slowest Speed 280 | 120 280 100 Overloaded Moves . | . . . Propulsion Burnouts . | . . . Robots Hopped 1 | . 1 . Cave-ins Triggered . | . . . Exploration Rate (%) 29 | 3 48 37 Regions Visited 2 Branch Regions 1 Pre-discovered Areas . | . . . Known Exits Taken 1 | . 1 . Unknown Exits Taken 1 | 1 . . Scrap Searched . | . . . Spaces Dug . | . . . Terrain Destroyed . | . . . Melee . | . . . Projectile . | . . . AOE . | . . . Terrain Rammed . | . . . Walls Destroyed . | . . . Machines Disabled . | . . . Actions | -11 -10 -10 --------- Run | Yrd Mat Min Total 425 | 48 226 151 Wait 9 | . 9 . Move 339 | 39 165 135 Hop 1 | . 1 . Pick Up 5 | 1 4 . Fast Attach 15 | 7 7 1 Attach . | . . . Detach . | . . . Swap . | . . . Drop 8 | 1 6 1 Fire 35 | . 34 1 Melee 13 | . . 13 Ram . | . . . Kick . | . . . Crush . | . . . Escape Stasis . | . . . Rewire . | . . . Trap . | . . . Miscellaneous . | . . . Route ------- -11/Scrapyard -10/Materials (discovered 2 exits: [*Mat] / *Min) -10/Mines History --------- Turn | Location | Event 12 | -11/Scrapyard | Discovered new exit (range 15) 58 | -11/Scrapyard | Entered Materials 172 | -10/Materials | Discovered new exit (range 15) 261 | -10/Materials | Discovered new exit (range 7) 271 | -10/Materials | Identified exit to Mines 272 | -10/Materials | Entered Mines 277 | -10/Mines | Assembled infested the area 301 | -10/Mines | A weapon hastily lodged in a ceiling crevice suddenly fell to the ground 321 | -10/Mines | Core integrity fell below 50% 324 | -10/Mines | Build established: Mutant 340 | -10/Mines | Core integrity fell below 20% 353 | -10/Mines | Destroyed by as-37051 with Assembled Heavy Rifle Last Messages --------------- LOCATION=MINES GOAL=ESCAPE Something is scanning the area. 00277_ ALERT: Infestation in the mines, dispatching Demolisher response squad. 00301_ A Mak. Spear has been hastily shoved under some rubble with a note attached: "Stab them where it hurts!" 00302_ Dropped Lgt. Cannon. 00303_ Acquired Mak. Spear. 00309_ Lgt. Ion Engine destroyed. 00311_ T-07 Excavator is excavating. 00320_ Flight Unit destroyed. 00320_ System corrupted by crushing effect (+1). 00322_ as-82912 destroyed. 00323_ Acquired 11 matter. 00328_ Flight Unit destroyed. 00332_ Lgt. Assault Rifle destroyed. 00337_ as-02797 destroyed. 00340_ %T55G%WEU8X|VC4FCL%Q>YOPAYEC0E RSHUB Map ----- +----------------------------------------------------+ | ?????????????????????????????????????? | | ?????????????????????????????????????? | | ?????????????????????????????????????? | | ?????????????????????????????????????? | | ?????????????????????????????????????? | | ?????????????????????????###?????????? | | ????????????????????????## ##???????? | | ????????????????????????# #####???? | | ????????????????????????# ##??? | | ?????????????????????????# #??? | | ????????#?????????????????# #??? | | ???????# ??????????????????# #??? | | ??????# ??????????????????## #??? | | ?????? ??????????????????## ##??? | | ?????? ??????????????????# ##???? | | ??????# ??????????????????# ##????? | | ??????# #??????????????????# #?????? | | ??????# ???????????####??##% ##????? | | #####?# #?????????## #?## #????? | | #?# #?????##### #?## #????? | | ### #?# #?##### ### ##????? | | ??# ### ### ] ## ##?????? | | ??# ### ###??????? | | ??# ###### ###?# ##????????? | | ??# ????# ##???# %# #???????? | | ?? ????## ##??##a@!%=#???????? | | ? ?????#### #### ##???????? | | # ????????## ##????????? | | ## ????????# ##?????????? | | ??### ????????# #??????????? | | ?????#????????## #??????????? | | ???????????????### ## ##??????????? | | ?????????????????# ######???????????? | | ???????????????? #????????????????? | | ??????????????? #????????????????? | | ???????????????######????????????????? | | ?????????????????????????????????????? | | | | | | | | | | | | | | | | | | | | | | | | | | | +----------------------------------------------------+ Best States ------------- Heat Dissipation 25 Energy Generation 10 Energy Capacity 250 Matter Stores 300 Matter Capacity 300 Sight Range 16 Terrain Scan Density 10 Evasion (%) 62 Item Schematics ----------------- None Robot Schematics ------------------ None Fabricated ------------ Nothing Alien Tech Used ----------------- None Achievements -------------- None Challenges ------------ None Game ------ Seed ConstructSpreadPenetrator Manual? 0 Play Time 00:08:00 Cumulative 38.8 hours Start 2024.07.11 @ 15:08:29 End 2024.07.11 @ 15:26:21 Sessions 1 Manual Loads 0 Difficulty Rogue Special Mode None Game No. 23 Rogue 17 Adventurer 5 Explorer 1 Win Type - Total 1 Types 1/0/0/0/0/0/0/0/0 Lore% 28 Gallery% 43 Achievement% 38 Wizard Run 0 Options --------- Layout 1 ASCII 0 Keyboard 0 Movement Mouse Keybinds 0 Fullscreen 2 Font 32/SmallcapsGlow Map View 50x35 Zoom Use 0% Tactical HUD 1 Map Filters NONE Filters NONE Steam 1 RUN: 7923ef41-723c-4445-8e08-175ea52c2ea9